fUST/lending_fUST_20250916
["ID","MTS","AMOUNT","RATE_DAILY","PERIOD"]
[385743014,1758000638663,-824.76148179,0.00020699,2]
[385743015,1758000638673,-824.76148179,0.00020699,2]
[385743016,1758000638683,-824.76148179,0.00020699,2]
[385743017,1758000638692,-824.76148179,0.00020699,2]
[385743018,1758000638702,-824.76148179,0.00020699,2]
[385743019,1758000638711,-824.76148179,0.00020699,2]
[385743020,1758000638720,-824.76148179,0.00020699,2]
[385743021,1758000638730,-824.76148179,0.00020699,2]
[385743022,1758000638739,-824.76148179,0.00020699,2]
[385743023,1758000638749,-824.76148179,0.00020699,2]
[385743024,1758000638758,-824.76148179,0.00020699,2]
[385743025,1758000638767,-824.76148179,0.00020699,2]
[385743026,1758000638776,-824.76148179,0.00020699,2]
[385743027,1758000638786,-824.76148179,0.00020699,2]
[385743028,1758000638795,-824.76148179,0.00020699,2]
[385743029,1758000638805,-824.76148179,0.00020699,2]
[385743030,1758000638814,-824.76148179,0.00020699,2]
[385743031,1758000638823,-824.76148179,0.00020699,2]
[385743032,1758000638832,-157.04393722,0.00020699,2]
[385743033,1758000638841,-500.0,0.00020699,2]
[385743034,1758000638851,-336.92976906,0.00020699,2]
[385743035,1758000638861,-500.0,0.00020699,2]
[385743036,1758000638870,-500.0,0.00020699,2]
[385743037,1758000638880,-558.68067171,0.00020699,2]
[385743038,1758000638889,-500.0,0.00020699,2]
[385743039,1758000638899,-500.0,0.00020699,2]
[385743040,1758000638908,-500.0,0.00020699,2]
[385743041,1758000638918,-877.24630336,0.00020699,2]
[385743042,1758000638928,-877.24630336,0.00020699,2]
[385743043,1758000638937,-877.24630336,0.00020699,2]
[385743044,1758000638947,-877.24630336,0.00020699,2]
[385743045,1758000638956,-877.24630336,0.00020699,2]
[385743046,1758000638966,-877.24630336,0.00020699,2]
[385743047,1758000638975,-877.24630336,0.00020699,2]
[385743048,1758000638985,-877.24630336,0.00020699,2]
[385743049,1758000638994,-877.24630336,0.00020699,2]
[385743050,1758000639004,-877.24630336,0.00020699,2]
[385743051,1758000639013,-986.9020913,0.00020699,2]
[385743052,1758000639023,-11851.37763106,0.000207,2]
[385743053,1758000639066,-12158.6872,0.000207,2]
[385743054,1758000639079,-345989.93516894,0.000207,2]
[385743055,1758000639088,-100000.0,0.0002099,2]
[385743056,1758000639097,-300.0,0.00021113,20]
[385743057,1758000639107,-300.0,0.00021113,20]
[385743058,1758000639116,-241.75177337,0.00021361,2]
[385743059,1758000639125,-156.052,0.00021916,2]
[385743060,1758000639135,-179.59981203,0.00021917,3]
[385743061,1758000639143,-249.6223451,0.00021917,2]
[385743062,1758000639153,-480.0,0.00021917,2]
[385743063,1758000639162,-480.0,0.00021917,2]
[385743064,1758000639171,-480.0,0.00021917,2]
[385743065,1758000639185,-480.0,0.00021917,2]
[385743066,1758000639194,-226.91457217,0.00021917,2]
[385743067,1758000639204,-480.0,0.00021917,2]
[385743068,1758000639213,-480.0,0.00021917,2]
[385743069,1758000639222,-480.0,0.00021917,2]
[385743070,1758000639231,-480.0,0.00021917,2]
[385743071,1758000639240,-480.0,0.00021917,2]
[385743072,1758000639249,-463.36,0.00021917,2]
[385743073,1758000639258,-480.0,0.00021917,2]
[385743074,1758000639267,-480.0,0.00021917,2]
[385743075,1758000639276,-480.0,0.00021917,2]
[385743076,1758000639286,-480.0,0.00021917,2]
[385743077,1758000639295,-480.0,0.00021917,2]
[385743078,1758000639304,-783.55,0.00021917,2]
[385743079,1758000639313,-480.0,0.00021917,2]
[385743080,1758000639323,-480.0,0.00021917,2]
[385743081,1758000639332,-618.14803816,0.00021917,2]
[385743082,1758000639342,-586.21496642,0.00021917,2]
[385743083,1758000639352,-480.0,0.00021917,2]
[385743084,1758000639361,-3055.8,0.00021917,2]
[385743085,1758000639371,-500.96775839,0.00021917,2]
[385743086,1758000639380,-480.0,0.00021917,2]
[385743087,1758000639389,-152.37362185,0.00021917,2]
[385743088,1758000639399,-480.0,0.00021917,2]
[385743089,1758000639408,-480.0,0.00021917,2]
[385743090,1758000639417,-480.0,0.00021917,2]
[385743091,1758000639428,-480.0,0.00021917,2]
[385743092,1758000639441,-480.0,0.00021917,2]
[385743093,1758000639451,-338.27722451,0.00021917,2]
[385743094,1758000639460,-480.0,0.00021917,2]
[385743095,1758000639470,-480.0,0.00021917,2]
[385743096,1758000639481,-480.0,0.00021917,2]
[385743097,1758000639490,-480.0,0.00021917,2]
[385743098,1758000639500,-1176.31,0.00021917,2]
[385743099,1758000639511,-480.0,0.00021917,2]
[385743100,1758000639520,-480.0,0.00021917,2]
[385743101,1758000639529,-480.0,0.00021917,2]
[385743102,1758000639539,-480.0,0.00021917,2]
[385743103,1758000639548,-480.0,0.00021917,2]
[385743104,1758000639557,-151.4407665,0.00021917,2]
[385743105,1758000639566,-480.0,0.00021917,2]
[385743106,1758000639575,-480.0,0.00021917,2]
[385743107,1758000639584,-480.0,0.00021917,2]
[385743108,1758000639594,-253.85026314,0.00021917,2]
[385743109,1758000639603,-663.32,0.00021917,2]
[385743110,1758000639613,-480.0,0.00021917,2]
[385743111,1758000639622,-480.0,0.00021917,2]
[385743112,1758000639631,-480.0,0.00021917,2]
[385743113,1758000639640,-480.0,0.00021917,2]
[385743114,1758000639649,-480.0,0.00021917,2]
[385743115,1758000639659,-480.0,0.00021917,2]
[385743116,1758000639668,-480.0,0.00021917,2]
[385743117,1758000639678,-150.0,0.00021977,2]
[385743118,1758000639687,-500.0,0.00021977,2]
[385743119,1758000639696,-569.58,0.00022,7]
[385743120,1758000639705,-7683.06,0.00022,7]
[385743121,1758000639714,-355.83135199,0.00022,2]
[385743122,1758000639723,-500.0,0.00022038,2]
[385743123,1758000639732,-500.0,0.00022038,2]
[385743124,1758000639741,-217.86301978,0.00022056,2]
[385743125,1758000639749,-160.0,0.00022056,2]
[385743126,1758000639758,-160.0,0.00022056,2]
[385743127,1758000639767,-160.0,0.00022056,2]
[385743128,1758000639776,-300.0,0.00022114,2]
[385743129,1758000639786,-241.75177337,0.00022121,2]
[385743130,1758000639795,-480.0,0.00022191,3]
[385743131,1758000639804,-480.0,0.00022191,3]
[385743132,1758000639813,-351.65494441,0.00022191,3]
[385743133,1758000639823,-450.98287705,0.00022191,3]
[385743134,1758000639833,-619.98921655,0.00022191,3]
[385743135,1758000639842,-480.0,0.00022191,3]
[385743136,1758000639851,-480.0,0.00022191,3]
[385743137,1758000639860,-606.43,0.00022191,3]
[385743138,1758000639869,-480.0,0.00022191,3]
[385743139,1758000639879,-480.0,0.00022191,3]
[385743140,1758000639888,-480.0,0.00022191,3]
[385743141,1758000639897,-480.0,0.00022191,3]
[385743142,1758000639906,-175.29235482,0.00022191,3]
[385743143,1758000639918,-274.97982665,0.00022191,3]
[385743144,1758000639927,-783.55,0.00022191,3]
[385743145,1758000639937,-480.0,0.00022191,3]
[385743146,1758000639947,-480.0,0.00022191,3]
[385743147,1758000639956,-480.0,0.00022191,3]
[385743148,1758000639966,-3055.8,0.00022191,3]
[385743149,1758000639975,-480.0,0.00022191,3]
[385743151,1758000640080,-480.0,0.00022191,3]
[385743152,1758000640089,-480.0,0.00022191,3]
[385743153,1758000640099,-287.93,0.00022191,3]
[385743154,1758000640108,-480.0,0.00022191,3]
[385743155,1758000640117,-480.0,0.00022191,3]
[385743156,1758000640127,-480.0,0.00022191,3]
[385743158,1758000640135,-517.37841268,0.00022191,3]
[385743159,1758000640147,-480.0,0.00022191,3]
[385743160,1758000640158,-1176.31,0.00022191,3]
[385743161,1758000640167,-480.0,0.00022191,3]
[385743162,1758000640176,-480.0,0.00022191,3]
[385743163,1758000640186,-480.0,0.00022191,3]
[385743164,1758000640195,-480.0,0.00022191,3]
[385743165,1758000640204,-480.0,0.00022191,3]
[385743166,1758000640213,-550.19069414,0.00022191,3]
[385743167,1758000640223,-663.32,0.00022191,3]
[385743168,1758000640232,-480.0,0.00022191,3]
[385743169,1758000640242,-160.0,0.00022191,3]
[385743170,1758000640251,-504.06395919,0.00022191,3]
[385743171,1758000640260,-221.87991446,0.00022191,3]
[385743172,1758000640269,-480.0,0.00022191,3]
[385743173,1758000640279,-480.0,0.00022191,3]
[385743174,1758000640288,-222.28263641,0.00022191,3]
[385743175,1758000640297,-450.0,0.00022251,2]
[385743176,1758000640306,-600.0,0.00022252,20]
[385743177,1758000640315,-500.0,0.00022255,2]
[385743178,1758000640324,-600.0,0.00022388,2]
[385743179,1758000640333,-480.0,0.00022465,3]
[385743180,1758000640343,-554.66,0.00022465,3]
[385743181,1758000640352,-460.92414144,0.00022465,3]
[385743182,1758000640361,-480.0,0.00022465,3]
[385743183,1758000640371,-247.09,0.00022465,3]
[385743184,1758000640380,-596.55,0.00022465,3]
[385743185,1758000640389,-513.07,0.00022465,3]
[385743186,1758000640398,-336.38,0.00022465,3]
[385743187,1758000640407,-783.55,0.00022465,3]
[385743189,1758000640417,-480.0,0.00022465,3]
[385743190,1758000640426,-480.0,0.00022465,3]
[385743191,1758000640440,-480.0,0.00022465,3]
[385743192,1758000640449,-3055.8,0.00022465,3]
[385743193,1758000640458,-480.0,0.00022465,3]
[385743194,1758000640467,-480.0,0.00022465,3]
[385743196,1758000640476,-480.0,0.00022465,3]
[385743198,1758000640485,-480.0,0.00022465,3]
[385743200,1758000640495,-330.40217785,0.00022465,3]
[385743202,1758000640504,-480.0,0.00022465,3]
[385743204,1758000640513,-1176.31,0.00022465,3]
[385743206,1758000640522,-629.95644982,0.00022465,3]
[385743208,1758000640532,-480.0,0.00022465,3]
[385743210,1758000640540,-480.0,0.00022465,3]
[385743212,1758000640550,-480.0,0.00022465,3]
[385743214,1758000640559,-480.0,0.00022465,3]
[385743216,1758000640568,-663.32,0.00022465,3]
[385743218,1758000640577,-384.31,0.00022465,3]
[385743220,1758000640586,-405.7,0.00022465,3]
[385743222,1758000640595,-480.0,0.00022465,3]
[385743224,1758000640604,-420.0,0.00022522,2]
[385743226,1758000640613,-219.55204424,0.00022525,2]
[385743228,1758000640622,-1000.0,0.00022525,2]
[385743230,1758000640631,-1000.0,0.00022586,2]
[385743232,1758000640640,-1000.0,0.00022586,2]
[385743234,1758000640650,-1680.0,0.00022628,2]
[385743236,1758000640659,-480.0,0.00022739,3]
[385743238,1758000640668,-544.45613658,0.00022739,3]
[385743239,1758000640678,-783.55,0.00022739,3]
[385743240,1758000640690,-480.0,0.00022739,3]
[385743241,1758000640699,-480.0,0.00022739,3]
[385743242,1758000640708,-480.0,0.00022739,3]
[385743243,1758000640717,-3055.8,0.00022739,3]
[385743244,1758000640726,-480.0,0.00022739,3]
[385743245,1758000640735,-480.0,0.00022739,3]
[385743246,1758000640745,-480.0,0.00022739,3]
[385743247,1758000640754,-480.0,0.00022739,3]
[385743248,1758000640763,-480.0,0.00022739,3]
[385743249,1758000640772,-1176.31,0.00022739,3]
[385743250,1758000640781,-480.0,0.00022739,3]
[385743251,1758000640791,-480.0,0.00022739,3]
[385743252,1758000640801,-480.0,0.00022739,3]
[385743253,1758000640810,-480.0,0.00022739,3]
[385743254,1758000640819,-663.32,0.00022739,3]
[385743255,1758000640829,-480.0,0.00022739,3]
[385743256,1758000640839,-377.66485435,0.00022803,2]
[385743257,1758000640848,-241.75177337,0.00022882,2]
[385743258,1758000640857,-503.71236141,0.00023,2]
[385743259,1758000640866,-160.0,0.00023,2]
[385743260,1758000640875,-847.61663983,0.00023,3]
[385743261,1758000640884,-480.0,0.00023013,3]
[385743262,1758000640894,-783.55,0.00023013,3]
[385743263,1758000640903,-480.0,0.00023013,3]
[385743264,1758000640913,-509.24,0.00023013,3]
[385743265,1758000640922,-480.0,0.00023013,3]
[385743266,1758000640934,-3055.8,0.00023013,3]
[385743267,1758000640943,-425.16,0.00023013,3]
[385743268,1758000640952,-480.0,0.00023013,3]
[385743269,1758000640962,-480.0,0.00023013,3]
[385743270,1758000640971,-480.0,0.00023013,3]
[385743271,1758000640980,-480.0,0.00023013,3]
[385743272,1758000640990,-1176.31,0.00023013,3]
[385743273,1758000640999,-480.0,0.00023013,3]
[385743274,1758000641008,-480.0,0.00023013,3]
[385743275,1758000641017,-480.0,0.00023013,3]
[385743276,1758000641026,-480.0,0.00023013,3]
[385743277,1758000641035,-663.32,0.00023013,3]
[385743278,1758000641046,-480.0,0.00023013,3]
[385743279,1758000641056,-1500.0,0.00023073,2]
[385743280,1758000641065,-1500.0,0.00023134,2]
[385743281,1758000641074,-1500.0,0.00023134,2]
[385743282,1758000641083,-160.0,0.0002314,2]
[385743283,1758000641092,-480.0,0.00023287,3]
[385743284,1758000641102,-783.55,0.00023287,3]
[385743285,1758000641111,-480.0,0.00023287,3]
[385743286,1758000641120,-338.13009797,0.00023287,3]
[385743287,1758000641129,-3055.8,0.00023287,3]
[385743288,1758000641138,-480.0,0.00023287,3]
[385743289,1758000641147,-480.0,0.00023287,3]
[385743290,1758000641156,-480.0,0.00023287,3]
[385743291,1758000641165,-480.0,0.00023287,3]
[385743292,1758000641174,-1176.31,0.00023287,3]
[385743293,1758000641186,-480.0,0.00023287,3]
[385743294,1758000641195,-480.0,0.00023287,3]
[385743295,1758000641204,-480.0,0.00023287,3]
[385743296,1758000641213,-480.0,0.00023287,3]
[385743297,1758000641223,-663.32,0.00023287,3]
[385743298,1758000641232,-1168.17,0.00023287,2]
[385743299,1758000641241,-168.0,0.00023557,2]
[385743300,1758000641251,-480.0,0.00023561,3]
[385743301,1758000641260,-783.55,0.00023561,3]
[385743302,1758000641269,-480.0,0.00023561,3]
[385743303,1758000641278,-3055.8,0.00023561,3]
[385743304,1758000641287,-480.0,0.00023561,3]
[385743305,1758000641296,-480.0,0.00023561,3]
[385743306,1758000641305,-439.60138047,0.00023561,3]
[385743307,1758000641315,-480.0,0.00023561,3]
[385743308,1758000641326,-1176.31,0.00023561,3]
[385743309,1758000641336,-205.37212271,0.00023561,3]
[385743310,1758000641345,-589.68,0.00023561,3]
[385743311,1758000641354,-480.0,0.00023561,3]
[385743312,1758000641363,-480.0,0.00023561,3]
[385743313,1758000641373,-663.32,0.00023561,3]
[385743314,1758000641382,-168.0,0.00023564,2]
[385743315,1758000641391,-168.0,0.00023571,2]
[385743316,1758000641400,-1012.71049064,0.00023621,2]
[385743317,1758000641409,-241.75177337,0.00023642,2]
[385743318,1758000641419,-2000.0,0.00023682,2]
[385743319,1758000641431,-493.08258184,0.00023682,2]
[385743320,1758000641443,-260.0,0.00023688,2]
[385743321,1758000641452,-228.00000001,0.000237,2]
[385743322,1758000641462,-168.0,0.00023711,2]
[385743323,1758000641471,-5000.0,0.00023735,2]
[385743324,1758000641482,-480.0,0.00023835,3]
[385743325,1758000641492,-783.55,0.00023835,3]
[385743326,1758000641501,-480.0,0.00023835,3]
[385743327,1758000641513,-3055.8,0.00023835,3]
[385743328,1758000641522,-480.0,0.00023835,3]
[385743329,1758000641532,-480.0,0.00023835,3]
[385743330,1758000641541,-153.78010323,0.00023835,3]
[385743331,1758000641550,-1176.31,0.00023835,3]
[385743332,1758000641559,-480.0,0.00023835,3]
[385743333,1758000641568,-480.0,0.00023835,3]
[385743334,1758000641577,-663.32,0.00023835,3]
[385743335,1758000641586,-168.0,0.00024107,2]
[385743336,1758000641596,-173.75285733,0.00024109,3]
[385743337,1758000641605,-783.55,0.00024109,3]
[385743338,1758000641614,-480.0,0.00024109,3]
[385743339,1758000641623,-3055.8,0.00024109,3]
[385743340,1758000641632,-480.0,0.00024109,3]
[385743341,1758000641641,-480.0,0.00024109,3]
[385743342,1758000641650,-1176.31,0.00024109,3]
[385743343,1758000641659,-480.0,0.00024109,3]
[385743344,1758000641668,-480.0,0.00024109,3]
[385743345,1758000641679,-663.32,0.00024109,3]
[385743346,1758000641688,-2500.0,0.0002423,2]
[385743347,1758000641697,-360.0,0.00024236,2]
[385743348,1758000641706,-168.0,0.00024316,2]
[385743349,1758000641715,-783.55,0.00024383,3]
[385743350,1758000641724,-480.0,0.00024383,3]
[385743351,1758000641733,-3055.8,0.00024383,3]
[385743352,1758000641743,-480.0,0.00024383,3]
[385743353,1758000641751,-480.0,0.00024383,3]
[385743354,1758000641761,-1176.31,0.00024383,3]
[385743355,1758000641770,-480.0,0.00024383,3]
[385743356,1758000641779,-663.32,0.00024383,3]
[385743357,1758000641788,-168.0,0.00024465,2]
[385743358,1758000641797,-720.0,0.00024478,20]
[385743359,1758000641806,-168.0,0.0002449,2]
[385743360,1758000641815,-587.0,0.00024506,2]
[385743361,1758000641824,-168.0,0.00024574,2]
[385743362,1758000641833,-7683.06,0.000246,7]
[385743363,1758000641843,-847.61663983,0.000246,7]
[385743364,1758000641851,-160.0,0.000246,7]
[385743365,1758000641860,-168.0,0.00024632,2]
[385743366,1758000641869,-300.58359745,0.00024657,2]
[385743367,1758000641879,-783.55,0.00024657,3]
[385743368,1758000641887,-480.0,0.00024657,3]
[385743369,1758000641896,-3055.8,0.00024657,3]
[385743370,1758000641905,-480.0,0.00024657,3]
[385743371,1758000641914,-480.0,0.00024657,3]
[385743372,1758000641923,-1176.31,0.00024657,3]
[385743373,1758000641933,-480.0,0.00024657,3]
[385743374,1758000641942,-663.32,0.00024657,3]
[385743375,1758000641951,-200.0,0.00024658,15]
[385743376,1758000641960,-569.58,0.000247,7]
[385743377,1758000641969,-1774.89,0.000247,7]
[385743378,1758000641978,-2351.0,0.00024739,2]
[385743379,1758000641987,-1600.0,0.00024755,2]
[385743380,1758000641997,-3000.0,0.00024778,2]
[385743381,1758000642007,-460.0,0.00024784,2]
[385743382,1758000642017,-28405.1425221,0.000248,3]
[385743383,1758000642026,-500.76270565,0.00024873,2]
[385743384,1758000642035,-501.04196088,0.00024873,2]
[385743385,1758000642044,-168.0,0.00024883,2]
[385743386,1758000642053,-152.29114,0.000249,7]
[385743387,1758000642061,-151.0,0.000249,7]
[385743388,1758000642070,-151.0,0.000249,7]
[385743389,1758000642079,-151.0,0.000249,7]
[385743390,1758000642088,-151.0,0.000249,7]
[385743391,1758000642097,-151.0,0.000249,7]
[385743392,1758000642106,-157.099397,0.000249,7]
[385743393,1758000642115,-184.897604,0.000249,7]
[385743394,1758000642124,-154.738351,0.000249,7]
[385743395,1758000642132,-151.0,0.000249,7]
[385743396,1758000642142,-151.0,0.000249,7]
[385743397,1758000642150,-158.530528,0.000249,7]
[385743398,1758000642159,-151.0,0.000249,7]
[385743399,1758000642168,-151.0,0.000249,7]
[385743400,1758000642179,-151.0,0.000249,7]
[385743401,1758000642188,-151.0,0.000249,7]
[385743402,1758000642196,-151.0,0.000249,7]
[385743403,1758000642206,-151.0,0.000249,7]
[385743404,1758000642215,-151.0,0.000249,7]
[385743405,1758000642224,-151.0,0.000249,7]
[385743406,1758000642233,-151.0,0.000249,7]
[385743407,1758000642243,-151.0,0.000249,7]
[385743408,1758000642252,-151.0,0.000249,7]
[385743409,1758000642261,-151.0,0.000249,7]
[385743410,1758000642270,-155.688121,0.000249,7]
[385743411,1758000642279,-151.0,0.000249,7]
[385743412,1758000642288,-151.0,0.000249,7]
[385743413,1758000642297,-153.442791,0.000249,7]
[385743414,1758000642306,-151.0,0.000249,7]
[385743415,1758000642315,-284593.97254554,0.000249,2]
[385743416,1758000642330,-3065.0469584,0.000249,2]
[385743422,1758000645426,-480.0,0.00021917,2]
[385743423,1758000645436,-617.56203235,0.00021917,2]
[385743424,1758000645446,-480.0,0.00021917,2]
[385743425,1758000645535,-480.0,0.00022191,3]
[385743426,1758000645556,-480.0,0.00022191,3]
[385743427,1758000645566,-250.17,0.00022465,3]
[385743428,1758000645575,-480.0,0.00022465,3]
[385743429,1758000645584,-480.0,0.00022739,3]
[385743430,1758000645593,-480.0,0.00023013,3]
[385743431,1758000645602,-336.56068543,0.00023287,3]
[385743434,1758000645764,-0.02198699,0.00023287,3]
[385743447,1758000646781,-143.41732758,0.00023287,3]
[385743448,1758000646791,-107.5255188,0.00023561,3]
[385743449,1758000646803,-372.4744812,0.00023561,3]
[385743450,1758000646811,-69.1335389,0.00023835,3]
[385743451,1758000648146,10000.01,0.000206,2]
[385743452,1758000648168,10000.01,0.000206,2]
[385743453,1758000648190,10000.01,0.000206,2]
[385743454,1758000648212,10000.01,0.000206,2]
[385743455,1758000648234,10000.01,0.000206,2]
[385743456,1758000648256,10000.01,0.000206,2]
[385743457,1758000648279,10000.01,0.000206,2]
[385743458,1758000648301,10000.01,0.000206,2]
[385743459,1758000648324,10000.01,0.000206,2]
[385743460,1758000648347,10000.01,0.000206,2]
[385743461,1758000648371,10000.01,0.000206,2]
[385743462,1758000648393,10000.01,0.000206,2]
[385743463,1758000648416,249999.88,0.000206,2]
[385743464,1758000658904,1422.3834319,0.000206,2]
[385743465,1758000667999,5000.0,0.000206,2]
[385743466,1758000676437,5000.0,0.000206,2]
[385743467,1758000694168,5000.0,0.000206,2]
[385743468,1758000702190,5000.0,0.000206,2]
[385743469,1758000717508,5000.0,0.000206,2]
[385743470,1758000725597,5000.0,0.000206,2]
[385743473,1758000741017,5000.0,0.000206,2]
[385743474,1758000749052,5000.0,0.000206,2]
[385743476,1758000811734,21522.16744966,0.000206,2]
[385743477,1758000883900,265.9912052,0.0002049,2]
[385743487,1758000961085,5000.0,0.0002055,2]
[385743488,1758000970474,5000.0,0.0002055,2]
[385743489,1758000972423,180.120206,0.00020018,2]
[385743490,1758000994546,5000.0,0.0002055,2]
[385743491,1758000995537,1504.8170561,0.00020018,2]
[385743492,1758001019148,5000.0,0.0002055,2]
[385743493,1758001034914,284.0574807,0.00019982,2]
[385743494,1758001042694,447.42922845,0.0002055,2]
[385743495,1758001046441,1000.0,0.00020275,2]
[385743496,1758001078628,3000.0,0.00028,30]
[385743497,1758001191414,5000.0,0.00019178,2]
[385743498,1758001192139,666.0,0.00019832,2]
[385743499,1758001251234,375.04,0.000205,2]
[385743500,1758001307912,6358.3779177,0.0001973,2]
[385743501,1758001347407,153.0,0.00024,120]
[385743502,1758001348797,153.0,0.00026,120]
[385743504,1758001621126,192.386663,0.00019755,2]
[385743505,1758001640242,-631.04,0.0002059,10]
[385743506,1758001640263,-284.53484619,0.00020596,2]
[385743507,1758001653360,4771.56173263,0.00019,2]
[385743508,1758001653395,25282.62399493,0.00019,2]
[385743510,1758001701920,10000.0,0.00019755,2]
[385743512,1758001757084,-220.22335384,0.0002059,10]
[385743564,1758001831878,-489.16,0.0002059,10]
[385743566,1758001831888,-407.63,0.0002059,10]
[385743568,1758001831897,-300.0,0.00020598,2]
[385743570,1758001831906,-300.0,0.00020598,2]
[385743572,1758001831915,-1200.0,0.00020598,2]
[385743574,1758001831924,-300.0,0.00020598,2]
[385743576,1758001831933,-583.23531059,0.00020599,2]
[385743579,1758001831943,-196.91970225,0.00020599,2]
[385743580,1758001831952,-343.09945066,0.00020599,2]
[385743581,1758001831962,-583.23531059,0.00020599,2]
[385743583,1758001831971,-583.23531059,0.00020599,2]
[385743585,1758001831981,-583.23531059,0.00020599,2]
[385743587,1758001831990,-583.23531059,0.00020599,2]
[385743589,1758001831999,-583.23531059,0.00020599,2]
[385743592,1758001832008,-583.23531059,0.00020599,2]
[385743594,1758001832017,-583.23531059,0.00020599,2]
[385743596,1758001832026,-583.23531059,0.00020599,2]
[385743598,1758001832037,-583.23531059,0.00020599,2]
[385743601,1758001832047,-583.23531059,0.00020599,2]
[385743603,1758001832056,-583.23531059,0.00020599,2]
[385743605,1758001832066,-583.23531059,0.00020599,2]
[385743607,1758001832075,-583.23531059,0.00020599,2]
[385743608,1758001832084,-583.23531059,0.00020599,2]
[385743610,1758001832093,-583.23531059,0.00020599,2]
[385743612,1758001832102,-583.23531059,0.00020599,2]
[385743614,1758001832112,-583.23531059,0.00020599,2]
[385743616,1758001832121,-583.23531059,0.00020599,2]
[385743618,1758001832130,-583.23531059,0.00020599,2]
[385743620,1758001832139,-500.0,0.00020599,2]
[385743622,1758001832149,-395.40896352,0.00020599,2]
[385743624,1758001832158,-612.39707613,0.00020599,2]
[385743627,1758001832167,-612.39707613,0.00020599,2]
[385743629,1758001832177,-612.39707613,0.00020599,2]
[385743631,1758001832187,-612.39707613,0.00020599,2]
[385743633,1758001832195,-612.39707613,0.00020599,2]
[385743634,1758001832205,-612.39707613,0.00020599,2]
[385743636,1758001832214,-612.39707613,0.00020599,2]
[385743638,1758001832224,-612.39707613,0.00020599,2]
[385743639,1758001832233,-612.39707613,0.00020599,2]
[385743640,1758001832242,-612.39707613,0.00020599,2]
[385743642,1758001832252,-500.0,0.00020599,2]
[385743644,1758001832261,-500.0,0.00020599,2]
[385743646,1758001832271,-500.0,0.00020599,2]
[385743648,1758001832280,-200.0,0.00020599,2]
[385743650,1758001832291,-500.0,0.00020599,2]
[385743652,1758001832300,-500.0,0.00020599,2]
[385743654,1758001832309,-500.0,0.00020599,2]
[385743656,1758001832318,-200.0,0.00020599,2]
[385743657,1758001832327,-500.0,0.00020599,2]
[385743658,1758001832337,-322.82527473,0.00020599,2]
[385743659,1758001832346,-177.76237682,0.00020599,2]
[385743660,1758001832354,-500.0,0.00020599,2]
[385743661,1758001832363,-500.0,0.00020599,2]
[385743662,1758001832373,-500.0,0.00020599,2]
[385743663,1758001832383,-500.0,0.00020599,2]
[385743664,1758001832391,-500.0,0.00020599,2]
[385743665,1758001832400,-500.0,0.00020599,2]
[385743666,1758001832409,-500.0,0.00020599,2]
[385743667,1758001832418,-472.50543552,0.00020599,2]
[385743676,1758001837753,-27.49456448,0.00020599,2]